[Event "Early-Titled-Tuesday-Blitz-October-17-2023"]
[Site "Chess.com"]
[Date "2023.10.17"]
[Round "5"]
[White "Rosh1610"]
[Black "GlavkonVVS"]
[Result "0-1"]
[WhiteElo "2442"]
[BlackElo "2579"]
[TimeControl "180+1"]
[EndTime "8:58:38 PDT"]
[Termination "GlavkonVVS won by resignation"]

1. e4 {[%clk 0:00:22.9]} 1... Nf6 {[%clk 0:02:58.1]} 2. e5 {[%clk 0:00:21.2]}
2... Nd5 {[%clk 0:02:58.1]} 3. d4 {[%clk 0:00:19.3]} 3... d6 {[%clk 0:02:53.3]}
4. c4 {[%clk 0:00:19.6]} 4... Nb6 {[%clk 0:02:53]} 5. exd6 {[%clk 0:00:20.5]}
5... cxd6 {[%clk 0:02:53.4]} 6. Nc3 {[%clk 0:00:20.8]} 6... g6 {[%clk
0:02:53.4]} 7. Nf3 {[%clk 0:00:21.3]} 7... Bg4 {[%clk 0:02:52.9]} 8. Bd3 {[%clk
0:00:21.2]} 8... Bg7 {[%clk 0:02:52]} 9. Be3 {[%clk 0:00:21]} 9... Nc6 {[%clk
0:02:51.9]} 10. h3 {[%clk 0:00:20.2]} 10... Bxf3 {[%clk 0:02:51.9]} 11. Qxf3
{[%clk 0:00:21.1]} 11... O-O {[%clk 0:02:50.1]} 12. O-O {[%clk 0:00:17.2]} 12...
Nxd4 {[%clk 0:02:48.9]} 13. Qxb7 {[%clk 0:00:15.5]} 13... Ne6 {[%clk 0:02:36.1]}
14. Qf3 {[%clk 0:00:15]} 14... Nc5 {[%clk 0:02:35]} 15. Be2 {[%clk 0:00:14.8]}
15... Rc8 {[%clk 0:02:28.3]} 16. Rac1 {[%clk 0:00:14.2]} 16... e6 {[%clk
0:02:24.4]} 17. b3 {[%clk 0:00:14]} 17... Qe7 {[%clk 0:02:23]} 18. Nb5 {[%clk
0:00:14.6]} 18... a6 {[%clk 0:02:15.4]} 19. Nc3 {[%clk 0:00:14.4]} 19... Rfd8
{[%clk 0:02:08.7]} 20. Rfd1 {[%clk 0:00:14.5]} 20... Nbd7 {[%clk 0:02:02]} 21.
b4 {[%clk 0:00:14.2]} 21... Ne5 {[%clk 0:02:02.1]} 22. Qg3 {[%clk 0:00:12.6]}
22... Ncd7 {[%clk 0:02:01.6]} 23. Na4 {[%clk 0:00:10.2]} 23... Nf6 {[%clk
0:01:56.4]} 24. f3 {[%clk 0:00:09.1]} 24... Nh5 {[%clk 0:01:48.8]} 25. Qf2
{[%clk 0:00:09.1]} 25... d5 {[%clk 0:01:44]} 26. Bc5 {[%clk 0:00:08.1]} 26...
Qe8 {[%clk 0:01:41.3]} 27. Nb6 {[%clk 0:00:07.3]} 27... Rb8 {[%clk 0:01:39.1]}
28. cxd5 {[%clk 0:00:07.3]} 28... Nf4 {[%clk 0:01:35.8]} 29. Bxa6 {[%clk
0:00:05.9]} 29... exd5 {[%clk 0:01:34]} 30. Be3 {[%clk 0:00:05.3]} 30... d4
{[%clk 0:01:20.4]} 31. Bxf4 {[%clk 0:00:04.9]} 31... Rxb6 {[%clk 0:01:18.9]} 32.
Bf1 {[%clk 0:00:02.7]} 32... Rxb4 {[%clk 0:01:18.3]} 33. Re1 {[%clk 0:00:02.6]}
33... d3 {[%clk 0:01:10.8]} 34. Bxe5 {[%clk 0:00:02.9]} 34... Bxe5 {[%clk
0:01:10.4]} 35. Rcd1 {[%clk 0:00:02.7]} 35... Bd4 {[%clk 0:01:04.1]} 36. Rxe8+
{[%clk 0:00:01.7]} 36... Rxe8 {[%clk 0:01:02.9]} 37. Qxd4 {[%clk 0:00:01.2]}
37... Rxd4 {[%clk 0:01:03]} 38. Rxd3 {[%clk 0:00:01.8]} 38... Rxd3 {[%clk
0:01:02.4]} 39. Bxd3 {[%clk 0:00:02.7]} 39... Re1+ {[%clk 0:00:59.9]} 40. Bf1
{[%clk 0:00:03.6]} 40... Ra1 {[%clk 0:01:00.1]} 41. Kf2 {[%clk 0:00:04.1]} 41...
Rxa2+ {[%clk 0:01:00.5]} 42. Be2 {[%clk 0:00:05]} 42... Kg7 {[%clk 0:00:59.9]}
43. Ke3 {[%clk 0:00:05.4]} 43... g5 {[%clk 0:00:59]} 44. g4 {[%clk 0:00:05.8]}
44... Kf6 {[%clk 0:00:58.3]} 45. Bf1 {[%clk 0:00:06.2]} 45... Ra3+ {[%clk
0:00:58.7]} 46. Kf2 {[%clk 0:00:05.7]} 46... Ke5 {[%clk 0:00:59.1]} 47. Kg3
{[%clk 0:00:06.3]} 47... h6 {[%clk 0:00:58.6]} 48. Bc4 {[%clk 0:00:05.8]} 48...
f6 {[%clk 0:00:58.3]} 49. Bb5 {[%clk 0:00:05.7]} 49... Kd4 {[%clk 0:00:58.6]}
50. Bd7 {[%clk 0:00:06.2]} 50... Ke3 {[%clk 0:00:58.9]} 51. Bf5 {[%clk
0:00:06.6]} 51... Ra1 {[%clk 0:00:57.9]} 52. Be4 {[%clk 0:00:06.1]} 52... Rg1+
{[%clk 0:00:57.9]} 53. Kh2 {[%clk 0:00:06.4]} 53... Kf2 {[%clk 0:00:58.5]} 54.
Bd5 {[%clk 0:00:06.4]} 54... Rg3 {[%clk 0:00:58.7]} 55. Be4 {[%clk 0:00:04.9]}
55... Rxf3 {[%clk 0:00:59]} 56. Bd5 {[%clk 0:00:04.2]} 56... Rd3 {[%clk
0:00:58.2]} 57. Be4 {[%clk 0:00:04.4]} 57... Rd2 {[%clk 0:00:58.3]} 58. Bf5
{[%clk 0:00:04.5]} 58... Ke3+ {[%clk 0:00:57.6]} 59. Kg3 {[%clk 0:00:04.6]}
59... Rf2 {[%clk 0:00:56.6]} 60. Be6 {[%clk 0:00:04.4]} 60... Rf3+ {[%clk
0:00:56.8]} 61. Kg2 {[%clk 0:00:04.4]} 61... Rf4 {[%clk 0:00:55.7]} 62. Bf5
{[%clk 0:00:04.1]} 62... h5 {[%clk 0:00:55.5]} 63. Be6 {[%clk 0:00:03.5]} 63...
h4 {[%clk 0:00:47.4]} 64. Bd7 {[%clk 0:00:03.5]} 64... Rf2+ {[%clk 0:00:47.1]}
65. Kg1 {[%clk 0:00:02.8]} 65... Kf3 {[%clk 0:00:47.2]} 66. Bc6+ {[%clk
0:00:02.9]} 66... Kg3 {[%clk 0:00:47.4]} 0-1

[Event "Early-Titled-Tuesday-Blitz-October-17-2023"]
[Site "Chess.com"]
[Date "2023.10.17"]
[Round "5"]
[White "faraone99"]
[Black "AlivodicDario"]
[Result "0-1"]
[WhiteElo "2526"]
[BlackElo "2449"]
[TimeControl "180+1"]
[EndTime "8:58:40 PDT"]
[Termination "AlivodicDario won by resignation"]

1. e4 {[%clk 0:03:00.9]} 1... e6 {[%clk 0:02:58.8]} 2. d4 {[%clk 0:03:00.4]}
2... d5 {[%clk 0:02:59.7]} 3. Nc3 {[%clk 0:03:00.3]} 3... Bb4 {[%clk 0:02:59.6]}
4. e5 {[%clk 0:02:59.4]} 4... Qd7 {[%clk 0:03:00.1]} 5. Qg4 {[%clk 0:02:55.5]}
5... f5 {[%clk 0:02:59.2]} 6. Qg3 {[%clk 0:02:48.2]} 6... b6 {[%clk 0:02:56.5]}
7. a3 {[%clk 0:02:48.2]} 7... Bxc3+ {[%clk 0:02:56.6]} 8. bxc3 {[%clk
0:02:49.1]} 8... Qf7 {[%clk 0:02:56.1]} 9. Ne2 {[%clk 0:02:45.7]} 9... Ne7
{[%clk 0:02:56]} 10. h4 {[%clk 0:02:45.6]} 10... Ba6 {[%clk 0:02:55.6]} 11. h5
{[%clk 0:02:45.3]} 11... h6 {[%clk 0:02:55]} 12. a4 {[%clk 0:02:37.3]} 12...
Nbc6 {[%clk 0:02:54.4]} 13. Ba3 {[%clk 0:02:35.7]} 13... O-O {[%clk 0:02:44.2]}
14. Nf4 {[%clk 0:02:35]} 14... Bxf1 {[%clk 0:02:45.1]} 15. Kxf1 {[%clk
0:02:33.5]} 15... Rfe8 {[%clk 0:02:44.8]} 16. Qd3 {[%clk 0:02:25.2]} 16... Na5
{[%clk 0:02:44.8]} 17. Rh3 {[%clk 0:02:24.5]} 17... Nc4 {[%clk 0:02:44.6]} 18.
Rg3 {[%clk 0:02:16.4]} 18... Rac8 {[%clk 0:02:41.9]} 19. Bc1 {[%clk 0:02:04.9]}
19... c5 {[%clk 0:02:33]} 20. Qe2 {[%clk 0:01:47.6]} 20... cxd4 {[%clk
0:02:31.9]} 21. cxd4 {[%clk 0:01:48.5]} 21... Rc6 {[%clk 0:02:07.5]} 22. Ng6
{[%clk 0:01:35.5]} 22... Kh7 {[%clk 0:01:59]} 23. Nxe7 {[%clk 0:01:07.4]} 23...
Qxe7 {[%clk 0:01:59.8]} 24. Rg6 {[%clk 0:01:01.8]} 24... Qh4 {[%clk 0:01:57.9]}
25. Qf3 {[%clk 0:00:48]} 25... Qxd4 {[%clk 0:01:43.3]} 26. c3 {[%clk 0:00:45.1]}
26... Nd2+ {[%clk 0:01:16.5]} 27. Bxd2 {[%clk 0:00:45.1]} 27... Qxd2 {[%clk
0:01:17.4]} 28. Qg3 {[%clk 0:00:45.8]} 28... Re7 {[%clk 0:01:09.2]} 29. f4
{[%clk 0:00:39.6]} 29... Rxc3 {[%clk 0:00:38.8]} 30. Rxh6+ {[%clk 0:00:38.3]}
30... Kg8 {[%clk 0:00:37.3]} 31. Qg5 {[%clk 0:00:30.4]} 31... Rec7 {[%clk
0:00:21.5]} 32. Kg1 {[%clk 0:00:27.6]} 32... Qe3+ {[%clk 0:00:12.7]} 33. Kh2
{[%clk 0:00:26.1]} 33... Qg3+ {[%clk 0:00:05.9]} 34. Qxg3 {[%clk 0:00:25.9]}
34... Rxg3 {[%clk 0:00:06.8]} 35. Kxg3 {[%clk 0:00:25]} 35... gxh6 {[%clk
0:00:06.9]} 36. a5 {[%clk 0:00:24.9]} 36... b5 {[%clk 0:00:04.2]} 37. a6 {[%clk
0:00:23.8]} 37... b4 {[%clk 0:00:03.1]} 38. Ra5 {[%clk 0:00:19.1]} 38... Rc3+
{[%clk 0:00:02.1]} 39. Kh2 {[%clk 0:00:18.3]} 39... b3 {[%clk 0:00:02.6]} 40.
Rb5 {[%clk 0:00:18.7]} 40... Kf7 {[%clk 0:00:02.8]} 41. Rb7+ {[%clk 0:00:18.8]}
41... Ke8 {[%clk 0:00:03.1]} 42. Rxa7 {[%clk 0:00:19.4]} 42... Kd8 {[%clk
0:00:03.2]} 43. Rb7 {[%clk 0:00:19.5]} 43... Kc8 {[%clk 0:00:03.5]} 44. Rb4
{[%clk 0:00:17.6]} 44... Rc6 {[%clk 0:00:03.4]} 45. Rxb3 {[%clk 0:00:17.8]}
45... Rxa6 {[%clk 0:00:03.9]} 46. Rg3 {[%clk 0:00:17.4]} 46... d4 {[%clk
0:00:03.8]} 47. Rg6 {[%clk 0:00:17.8]} 47... d3 {[%clk 0:00:03.9]} 48. Rg3
{[%clk 0:00:16.7]} 48... d2 {[%clk 0:00:02.7]} 49. Rd3 {[%clk 0:00:16.8]} 49...
Ra2 {[%clk 0:00:03.4]} 50. Kg3 {[%clk 0:00:16.6]} 50... Kc7 {[%clk 0:00:03.7]}
51. Kf3 {[%clk 0:00:17]} 51... Kc6 {[%clk 0:00:04.5]} 52. Ke3 {[%clk 0:00:17.4]}
52... Kc5 {[%clk 0:00:04.4]} 53. Ke2 {[%clk 0:00:14.6]} 53... d1=Q+ {[%clk
0:00:03.2]} 54. Kxd1 {[%clk 0:00:14.4]} 54... Rxg2 {[%clk 0:00:04.1]} 55. Rd6
{[%clk 0:00:14.9]} 55... Rg4 {[%clk 0:00:02]} 56. Rxe6 {[%clk 0:00:15.1]} 56...
Rxf4 {[%clk 0:00:02.6]} 57. Rxh6 {[%clk 0:00:15.8]} 57... Re4 {[%clk 0:00:02.7]}
58. e6 {[%clk 0:00:16.1]} 58... Kd6 {[%clk 0:00:03.3]} 59. Rg6 {[%clk
0:00:16.6]} 59... Rxe6 {[%clk 0:00:03.1]} 60. Rg5 {[%clk 0:00:09.8]} 60... Ke5
{[%clk 0:00:03.1]} 61. Ke2 {[%clk 0:00:09.9]} 61... Kf4+ {[%clk 0:00:02.7]} 0-1

[Event "Early-Titled-Tuesday-Blitz-October-17-2023"]
[Site "Chess.com"]
[Date "2023.10.17"]
[Round "5"]
[White "MightyGMpretender"]
[Black "Tobias_Koelle"]
[Result "1/2-1/2"]
[WhiteElo "2836"]
[BlackElo "2961"]
[TimeControl "180+1"]
[EndTime "8:58:46 PDT"]
[Termination "Game drawn by repetition"]

1. Nf3 {[%clk 0:03:00.9]} 1... d5 {[%clk 0:02:54.1]} 2. e3 {[%clk 0:03:00.5]}
2... Nf6 {[%clk 0:02:53.5]} 3. c4 {[%clk 0:03:01]} 3... e6 {[%clk 0:02:54.4]} 4.
b3 {[%clk 0:03:00.7]} 4... b6 {[%clk 0:02:51.7]} 5. Bb2 {[%clk 0:03:00.8]} 5...
Bb7 {[%clk 0:02:51.5]} 6. cxd5 {[%clk 0:03:01]} 6... exd5 {[%clk 0:02:50.8]} 7.
g3 {[%clk 0:03:01.6]} 7... Nbd7 {[%clk 0:02:31.2]} 8. Bg2 {[%clk 0:03:01.8]}
8... Bd6 {[%clk 0:02:31.9]} 9. O-O {[%clk 0:03:02]} 9... O-O {[%clk 0:02:32.5]}
10. Nc3 {[%clk 0:03:02.6]} 10... a6 {[%clk 0:02:33.2]} 11. Ne2 {[%clk
0:02:58.7]} 11... Re8 {[%clk 0:02:32.2]} 12. Rc1 {[%clk 0:02:57.2]} 12... Ne5
{[%clk 0:02:30.7]} 13. Nxe5 {[%clk 0:02:52.3]} 13... Bxe5 {[%clk 0:02:31.6]} 14.
Bxe5 {[%clk 0:02:52.9]} 14... Rxe5 {[%clk 0:02:32.5]} 15. d4 {[%clk 0:02:53.6]}
15... Re7 {[%clk 0:02:30.2]} 16. Nf4 {[%clk 0:02:50.7]} 16... Qd6 {[%clk
0:02:29.5]} 17. Nd3 {[%clk 0:02:40.9]} 17... a5 {[%clk 0:02:28.6]} 18. Re1
{[%clk 0:02:38.7]} 18... a4 {[%clk 0:02:23]} 19. b4 {[%clk 0:02:35.9]} 19... a3
{[%clk 0:02:18.8]} 20. Qb3 {[%clk 0:02:29.6]} 20... g6 {[%clk 0:02:16]} 21. Rc2
{[%clk 0:02:24.2]} 21... Ne4 {[%clk 0:02:03.8]} 22. Rec1 {[%clk 0:02:22]} 22...
Kg7 {[%clk 0:02:02.9]} 23. Ne5 {[%clk 0:02:08.7]} 23... f6 {[%clk 0:01:52.9]}
24. Nc6 {[%clk 0:02:00.2]} 24... Rd7 {[%clk 0:01:45.1]} 25. b5 {[%clk
0:01:58.3]} 25... Bxc6 {[%clk 0:01:39]} 26. Rxc6 {[%clk 0:01:57.8]} 26... Qe7
{[%clk 0:01:37.4]} 27. Qc2 {[%clk 0:01:47]} 27... Ra7 {[%clk 0:01:32.3]} 28.
Bxe4 {[%clk 0:01:35.7]} 28... dxe4 {[%clk 0:01:25.8]} 29. Qc4 {[%clk 0:01:35.7]}
29... h5 {[%clk 0:01:25.3]} 30. Re6 {[%clk 0:01:34.6]} 30... Qf7 {[%clk
0:01:24.8]} 31. d5 {[%clk 0:01:20.3]} 31... f5 {[%clk 0:01:20]} 32. Qd4+ {[%clk
0:01:18.4]} 32... Kh7 {[%clk 0:01:18.9]} 33. Rcc6 {[%clk 0:01:18.8]} 33... Ra8
{[%clk 0:01:10.5]} 34. Qe5 {[%clk 0:01:18.2]} 34... Rad8 {[%clk 0:01:07.5]} 35.
Qf4 {[%clk 0:00:53.5]} 35... Rxd5 {[%clk 0:00:58.6]} 36. Rxc7 {[%clk 0:00:35.7]}
36... R8d7 {[%clk 0:00:58.2]} 37. Rxd7 {[%clk 0:00:26.2]} 37... Rxd7 {[%clk
0:00:39.4]} 38. Qe5 {[%clk 0:00:25.3]} 38... Qg7 {[%clk 0:00:33]} 39. Rf6 {[%clk
0:00:17.6]} 39... Rf7 {[%clk 0:00:20]} 40. Rxf7 {[%clk 0:00:06.2]} 40... Qxf7
{[%clk 0:00:20.9]} 41. Qd6 {[%clk 0:00:05.6]} 41... Qxa2 {[%clk 0:00:18.2]} 42.
Qxb6 {[%clk 0:00:05.9]} 42... Qb2 {[%clk 0:00:10.7]} 43. Qc7+ {[%clk 0:00:05]}
43... Kh6 {[%clk 0:00:10.8]} 44. Qf4+ {[%clk 0:00:05.7]} 44... Kh7 {[%clk
0:00:11.4]} 45. Qc7+ {[%clk 0:00:06]} 45... Qg7 {[%clk 0:00:12]} 46. Qa5 {[%clk
0:00:05.6]} 46... Qa1+ {[%clk 0:00:11.9]} 47. Kg2 {[%clk 0:00:05.6]} 47... a2
{[%clk 0:00:12.6]} 48. b6 {[%clk 0:00:04.6]} 48... Qb2 {[%clk 0:00:11]} 49. b7
{[%clk 0:00:04.8]} 49... a1=Q {[%clk 0:00:04.8]} 50. Qxa1 {[%clk 0:00:04.6]}
50... Qxa1 {[%clk 0:00:05.7]} 51. b8=Q {[%clk 0:00:04.9]} 51... Qf6 {[%clk
0:00:05.6]} 52. Qc7+ {[%clk 0:00:05.3]} 52... Kh6 {[%clk 0:00:05.2]} 53. h4
{[%clk 0:00:05.5]} 53... g5 {[%clk 0:00:03.7]} 54. hxg5+ {[%clk 0:00:05.6]}
54... Kxg5 {[%clk 0:00:04.6]} 55. Qf4+ {[%clk 0:00:05.1]} 55... Kg6 {[%clk
0:00:05.3]} 56. Qb8 {[%clk 0:00:05.6]} 56... Qe6 {[%clk 0:00:05.3]} 57. Qf4
{[%clk 0:00:05.8]} 57... Qd5 {[%clk 0:00:05.3]} 58. Qb8 {[%clk 0:00:06.2]} 58...
Qd1 {[%clk 0:00:04]} 59. Qg8+ {[%clk 0:00:05.7]} 59... Kf6 {[%clk 0:00:04.1]}
60. Qh8+ {[%clk 0:00:06.2]} 60... Kg6 {[%clk 0:00:04.5]} 61. Qg8+ {[%clk
0:00:06.8]} 61... Kh6 {[%clk 0:00:04.8]} 62. Qf8+ {[%clk 0:00:07.3]} 62... Kg6
{[%clk 0:00:05]} 63. Qe8+ {[%clk 0:00:08]} 63... Kf6 {[%clk 0:00:05]} 64. Qh8+
{[%clk 0:00:07.5]} 64... Kg6 {[%clk 0:00:03.8]} 65. Qg8+ {[%clk 0:00:08.2]}
1/2-1/2

[Event "Early-Titled-Tuesday-Blitz-October-17-2023"]
[Site "Chess.com"]
[Date "2023.10.17"]
[Round "5"]
[White "djokovic74"]
[Black "balachess2006"]
[Result "0-1"]
[WhiteElo "2728"]
[BlackElo "2622"]
[TimeControl "180+1"]
[EndTime "8:58:53 PDT"]
[Termination "balachess2006 won by resignation"]

1. e4 {[%clk 0:03:00.9]} 1... c5 {[%clk 0:02:58.4]} 2. Nf3 {[%clk 0:03:01.5]}
2... Nc6 {[%clk 0:02:58.6]} 3. d4 {[%clk 0:03:01.5]} 3... cxd4 {[%clk
0:02:59.5]} 4. Nxd4 {[%clk 0:03:02.1]} 4... Nf6 {[%clk 0:02:59.8]} 5. Nc3 {[%clk
0:03:02.5]} 5... d6 {[%clk 0:03:00]} 6. Be2 {[%clk 0:03:02.1]} 6... g6 {[%clk
0:02:59.9]} 7. O-O {[%clk 0:02:54.1]} 7... Bg7 {[%clk 0:02:58.8]} 8. Re1 {[%clk
0:02:54.5]} 8... Nxd4 {[%clk 0:02:56.6]} 9. Qxd4 {[%clk 0:02:53.6]} 9... O-O
{[%clk 0:02:57.5]} 10. Qd3 {[%clk 0:02:34.2]} 10... Be6 {[%clk 0:02:55.6]} 11.
Be3 {[%clk 0:02:32.4]} 11... Qa5 {[%clk 0:02:55.1]} 12. Bd4 {[%clk 0:02:18.2]}
12... Rfc8 {[%clk 0:02:53.3]} 13. f3 {[%clk 0:02:06]} 13... Qb4 {[%clk
0:02:47.3]} 14. a3 {[%clk 0:02:03.4]} 14... Qa5 {[%clk 0:02:41.4]} 15. Qe3
{[%clk 0:01:50.5]} 15... Bc4 {[%clk 0:02:26.4]} 16. Bxc4 {[%clk 0:01:46.2]}
16... Rxc4 {[%clk 0:02:27.3]} 17. e5 {[%clk 0:01:23.5]} 17... Nd7 {[%clk
0:01:36.7]} 18. f4 {[%clk 0:01:22.7]} 18... dxe5 {[%clk 0:01:30.4]} 19. fxe5
{[%clk 0:01:17.1]} 19... Nf8 {[%clk 0:01:29.6]} 20. Rad1 {[%clk 0:00:46.3]}
20... Ne6 {[%clk 0:01:27.2]} 21. Ne2 {[%clk 0:00:46.2]} 21... Rxc2 {[%clk
0:00:46]} 22. Bc3 {[%clk 0:00:42]} 22... Qb5 {[%clk 0:00:46.1]} 23. Qe4 {[%clk
0:00:31.6]} 23... Qb3 {[%clk 0:00:36.1]} 24. Nc1 {[%clk 0:00:31.4]} 24... Qb6+
{[%clk 0:00:34.9]} 25. Kh1 {[%clk 0:00:26.3]} 25... Rf2 {[%clk 0:00:35]} 26. Nd3
{[%clk 0:00:22.3]} 26... Rf5 {[%clk 0:00:30.2]} 27. g4 {[%clk 0:00:15.9]} 27...
Ng5 {[%clk 0:00:29.3]} 28. Qe3 {[%clk 0:00:04.4]} 28... Qxe3 {[%clk 0:00:22.8]}
29. Rxe3 {[%clk 0:00:04.7]} 29... Rf3 {[%clk 0:00:21.8]} 30. Rxf3 {[%clk
0:00:04.1]} 30... Nxf3 {[%clk 0:00:22.7]} 31. Kg2 {[%clk 0:00:04.7]} 31... Ng5
{[%clk 0:00:22.6]} 32. h4 {[%clk 0:00:05.2]} 32... Ne6 {[%clk 0:00:22.9]} 33.
Nb4 {[%clk 0:00:05.7]} 33... Rd8 {[%clk 0:00:21.6]} 34. Rxd8+ {[%clk 0:00:04.5]}
34... Nxd8 {[%clk 0:00:22.5]} 35. Nd5 {[%clk 0:00:05]} 35... Nc6 {[%clk
0:00:22.8]} 36. Kf3 {[%clk 0:00:03.6]} 36... e6 {[%clk 0:00:23.1]} 37. Nf6+
{[%clk 0:00:03.5]} 37... Bxf6 {[%clk 0:00:23.3]} 38. exf6 {[%clk 0:00:04.3]}
38... h6 {[%clk 0:00:20.6]} 39. Ke4 {[%clk 0:00:04.1]} 39... b5 {[%clk
0:00:20.4]} 40. b3 {[%clk 0:00:02.4]} 40... a6 {[%clk 0:00:20.4]} 41. Bd2 {[%clk
0:00:02.6]} 41... Kh7 {[%clk 0:00:20.4]} 42. Be3 {[%clk 0:00:02.3]} 42... h5
{[%clk 0:00:20.4]} 43. g5 {[%clk 0:00:02.7]} 43... Kg8 {[%clk 0:00:17.9]} 44.
Bc5 {[%clk 0:00:03]} 44... Na5 {[%clk 0:00:15.1]} 45. b4 {[%clk 0:00:02.3]}
45... Nc4 {[%clk 0:00:15.5]} 46. Be7 {[%clk 0:00:01.9]} 46... Nxa3 {[%clk
0:00:13]} 47. Kd4 {[%clk 0:00:02.6]} 47... Nc4 {[%clk 0:00:13.2]} 48. Kc5 {[%clk
0:00:03.3]} 48... e5 {[%clk 0:00:08.7]} 49. Kc6 {[%clk 0:00:03.9]} 49... e4
{[%clk 0:00:09]} 50. Kb7 {[%clk 0:00:03.3]} 50... e3 {[%clk 0:00:09.4]} 51. Bc5
{[%clk 0:00:04.1]} 51... e2 {[%clk 0:00:09.2]} 52. Bf2 {[%clk 0:00:04.3]} 52...
a5 {[%clk 0:00:09.8]} 53. bxa5 {[%clk 0:00:02.9]} 53... Nxa5+ {[%clk 0:00:10.7]}
54. Kb6 {[%clk 0:00:03.5]} 54... Nc4+ {[%clk 0:00:11.1]} 55. Kxb5 {[%clk
0:00:04.2]} 55... Nb2 {[%clk 0:00:11.7]} 56. Kc5 {[%clk 0:00:01.9]} 56... Nd3+
{[%clk 0:00:11.9]} 57. Kd4 {[%clk 0:00:02.3]} 57... e1=Q {[%clk 0:00:12.8]} 58.
Bxe1 {[%clk 0:00:02.4]} 58... Nxe1 {[%clk 0:00:13.7]} 59. Ke3 {[%clk 0:00:01.7]}
59... Ng2+ {[%clk 0:00:13.9]} 60. Kf3 {[%clk 0:00:02]} 60... Nxh4+ {[%clk
0:00:14.8]} 61. Kg3 {[%clk 0:00:02.7]} 61... Nf5+ {[%clk 0:00:15.7]} 62. Kf4
{[%clk 0:00:03.4]} 62... Kf8 {[%clk 0:00:16.6]} 63. Ke5 {[%clk 0:00:04.1]} 63...
Ke8 {[%clk 0:00:17.5]} 64. Kd5 {[%clk 0:00:04.7]} 64... Kd7 {[%clk 0:00:18.4]}
0-1

[Event "Early-Titled-Tuesday-Blitz-October-17-2023"]
[Site "Chess.com"]
[Date "2023.10.17"]
[Round "5"]
[White "Anton_Demchenko"]
[Black "Fonsofan"]
[Result "1-0"]
[WhiteElo "3019"]
[BlackElo "2675"]
[TimeControl "180+1"]
[EndTime "8:58:57 PDT"]
[Termination "Anton_Demchenko won by resignation"]

1. e4 {[%clk 0:02:59.5]} 1... d6 {[%clk 0:02:51.8]} 2. d4 {[%clk 0:02:59.4]}
2... Nf6 {[%clk 0:02:52.7]} 3. Bd3 {[%clk 0:02:58.9]} 3... e5 {[%clk 0:02:53]}
4. c3 {[%clk 0:02:55.2]} 4... d5 {[%clk 0:02:53.5]} 5. dxe5 {[%clk 0:02:54.2]}
5... Nxe4 {[%clk 0:02:53.8]} 6. Nf3 {[%clk 0:02:52.8]} 6... Nc6 {[%clk
0:02:54.3]} 7. Nbd2 {[%clk 0:02:38.5]} 7... Nc5 {[%clk 0:02:53.7]} 8. Bc2 {[%clk
0:02:35.6]} 8... Bg4 {[%clk 0:02:53.7]} 9. h3 {[%clk 0:02:35.4]} 9... Bh5 {[%clk
0:02:52.8]} 10. O-O {[%clk 0:02:27.7]} 10... Be7 {[%clk 0:02:51.9]} 11. Re1
{[%clk 0:02:25.8]} 11... O-O {[%clk 0:02:51.6]} 12. Nf1 {[%clk 0:02:25.4]} 12...
Ne6 {[%clk 0:02:37.9]} 13. Ng3 {[%clk 0:02:21.3]} 13... Bg6 {[%clk 0:02:38]} 14.
Nf5 {[%clk 0:02:19.4]} 14... Qd7 {[%clk 0:02:30]} 15. Be3 {[%clk 0:02:06.4]}
15... Bc5 {[%clk 0:02:15]} 16. Bxc5 {[%clk 0:01:42.4]} 16... Nxc5 {[%clk
0:02:15.9]} 17. N3h4 {[%clk 0:01:42.8]} 17... Rfe8 {[%clk 0:01:57.2]} 18. b4
{[%clk 0:01:39]} 18... Ne6 {[%clk 0:01:46.1]} 19. Qg4 {[%clk 0:01:32.2]} 19...
Rad8 {[%clk 0:01:45]} 20. Rad1 {[%clk 0:01:31.7]} 20... Nf8 {[%clk 0:01:28.5]}
21. f4 {[%clk 0:01:11.3]} 21... Qc8 {[%clk 0:01:14.2]} 22. Bb3 {[%clk
0:00:48.6]} 22... Qe6 {[%clk 0:00:47.5]} 23. Nd4 {[%clk 0:00:33.3]} 23... Nxd4
{[%clk 0:00:46.1]} 24. cxd4 {[%clk 0:00:32.6]} 24... Qxg4 {[%clk 0:00:43]} 25.
hxg4 {[%clk 0:00:33.5]} 25... Be4 {[%clk 0:00:43.6]} 26. Rc1 {[%clk 0:00:30.7]}
26... c6 {[%clk 0:00:43.6]} 27. Nf5 {[%clk 0:00:30.3]} 27... Ne6 {[%clk
0:00:42.1]} 28. Nd6 {[%clk 0:00:27.5]} 28... Rxd6 {[%clk 0:00:37.2]} 29. exd6
{[%clk 0:00:27.9]} 29... Nxf4 {[%clk 0:00:37.9]} 30. Bc2 {[%clk 0:00:21.4]}
30... Nxg2 {[%clk 0:00:29.8]} 31. Rxe4 {[%clk 0:00:20.1]} 31... dxe4 {[%clk
0:00:28.7]} 32. Kxg2 {[%clk 0:00:20.8]} 32... Rd8 {[%clk 0:00:28.4]} 33. Bxe4
{[%clk 0:00:19.2]} 33... Kf8 {[%clk 0:00:27.4]} 34. d5 {[%clk 0:00:10.8]} 34...
cxd5 {[%clk 0:00:26.2]} 35. Bxd5 {[%clk 0:00:11.7]} 35... Rxd6 {[%clk
0:00:26.7]} 36. Bb3 {[%clk 0:00:09.5]} 36... Rd4 {[%clk 0:00:20.9]} 37. Rc8+
{[%clk 0:00:09.7]} 37... Ke7 {[%clk 0:00:21]} 38. Rc7+ {[%clk 0:00:10.5]} 38...
Kd6 {[%clk 0:00:21.6]} 39. Rxb7 {[%clk 0:00:10.5]} 39... Rxg4+ {[%clk
0:00:20.6]} 40. Kf3 {[%clk 0:00:11.1]} 40... f5 {[%clk 0:00:19.5]} 41. b5 {[%clk
0:00:10.2]} 41... Kc5 {[%clk 0:00:19.1]} 42. a4 {[%clk 0:00:07]} 42... Kb4
{[%clk 0:00:18.5]} 43. Bd1 {[%clk 0:00:06.9]} 43... Rd4 {[%clk 0:00:18.2]} 44.
Ke2 {[%clk 0:00:07]} 44... f4 {[%clk 0:00:12.5]} 45. Ke1 {[%clk 0:00:07.2]}
45... Re4+ {[%clk 0:00:11]} 46. Kf2 {[%clk 0:00:07]} 46... Rd4 {[%clk
0:00:11.2]} 47. Be2 {[%clk 0:00:06.4]} 47... Kxa4 {[%clk 0:00:09.1]} 48. Rxa7+
{[%clk 0:00:07]} 48... Kb4 {[%clk 0:00:08.2]} 49. Rxg7 {[%clk 0:00:07.6]} 49...
h5 {[%clk 0:00:06.4]} 50. b6 {[%clk 0:00:08.1]} 50... Kc5 {[%clk 0:00:05]} 51.
b7 {[%clk 0:00:08.5]} 51... Rb4 {[%clk 0:00:05.5]} 52. Bf3 {[%clk 0:00:07.9]}
52... Rb2+ {[%clk 0:00:05.8]} 53. Kg1 {[%clk 0:00:08.2]} 53... Rb1+ {[%clk
0:00:06]} 54. Kg2 {[%clk 0:00:08.7]} 54... Rb2+ {[%clk 0:00:06.4]} 55. Kh3
{[%clk 0:00:06.7]} 55... Rb3 {[%clk 0:00:06.5]} 56. Kh4 {[%clk 0:00:06.4]} 56...
Kd4 {[%clk 0:00:03.3]} 57. Rg8 {[%clk 0:00:05.7]} 57... Ke3 {[%clk 0:00:02.6]}
58. b8=Q {[%clk 0:00:05.6]} 58... Rxb8 {[%clk 0:00:03.1]} 59. Rxb8 {[%clk
0:00:05.9]} 59... Kxf3 {[%clk 0:00:04]} 60. Rf8 {[%clk 0:00:03.8]} 60... Ke3
{[%clk 0:00:03.8]} 61. Kh3 {[%clk 0:00:04.4]} 61... f3 {[%clk 0:00:02.8]} 62.
Kg3 {[%clk 0:00:04.7]} 62... h4+ {[%clk 0:00:03.3]} 63. Kxh4 {[%clk 0:00:03.5]}
63... f2 {[%clk 0:00:04.2]} 64. Kg3 {[%clk 0:00:04.1]} 1-0